Cogmind - Beta 15 @@@ ROGUE MODE // 2025.09.30 @ 16:36:22 Player: Figgis Result: Destroyed by H-66 Slayer with Gauss Rifle Performance ------------- Evolutions (4) 2000 Regions Visited (8) 1600 Robots Destroyed (49) 245 Value Destroyed (1722) 1722 Prototype IDs (15) 300 Alien Tech Used (0) 0 Bonus (851) 851 TOTAL SCORE: 6718 Bonus ------- Follower Combat Kills 51 Registered with UFD 300 Met Optimus in HQ 500 Cogmind --------- Core Integrity 0/850 Matter 46/300 Energy 78/100 System Corruption 26% Temperature Cool (0) Movement Core (50) Location -6/Lower Caves Parts ------- > --- POWER (2) -------- (None) > --- PROPULSION (5) --- (None) > --- UTILITY (6) ------ System Shield > --- WEAPON (2) ------- (None) > --- INVENTORY (5) ---- Improved Deuterium Engine Surveybot 17 Chip Cloaking Device Improved Proton Missile Launcher Peak State ------------ > --- POWER ------------ Angular Momentum Engine Angular Momentum Engine > --- PROPULSION ------- Carbon-fiber Leg Improved Titanium Leg Improved Titanium Leg Cargo Legs > --- UTILITY ---------- Large Storage Unit Improved Particle Charger Improved Reaction Control System Improved Propulsion Shielding Improved Medium Armor Plating Insulated Plating Hacking Suite System Shield > --- WEAPON ----------- High-powered Shotgun Heavy Machine Gun > --- INVENTORY -------- Light Angular Momentum Engine Nuclear Pulse Thruster Surveybot 17 Chip Advanced Targeting Computer Improved Medium Armor Plating Improved Medium Armor Plating Reflective Plating System Shield System Shield Makeshift System Restoration Module Mapping Drone Bay Flak Gun Heavy Missile Launcher Power Sword DRS Beacon [Rating: 78] Favorites ----------- Power Angular Momentum Engine Engine Angular Momentum Engine Propulsion Cargo Legs Treads Light Treads Leg Cargo Legs Wheel Compact Wheel Flight Unit Nuclear Pulse Thruster Utility Hacking Suite Device Improved Particle Charger Storage Medium Storage Unit Processor Targeting Computer Hackware Hacking Suite Protection Improved Propulsion Shielding Weapon Light Assault Rifle Energy Gun Medium Laser Ballistic Gun Light Assault Rifle Ballistic Cannon Advanced Assault Cannon Launcher Long-range Missile Launcher Special Weapon Mining Laser Impact Weapon Shock Maul Slashing Weapon Power Sword Build | -11 -10 -10 -10 -8 -6 -6 -6 -6 ------- Run | Yrd Mat Min Sub Scr Fac Was Fac Low Slots Evolved 8 | . . . . . 8 . . . Power 1 | . . . . . 1 . . . Propulsion 3 | . . . . . 3 . . . Utility 4 | . . . . . 4 . . . Weapon . | . . . . . . . . . Parts Attached 85 | 3 9 4 12 13 13 4 22 5 Power 11 | 1 2 1 2 1 1 . 3 . Engine 11 | 1 2 1 2 1 1 . 3 . Core . | . . . . . . . . . Reactor . | . . . . . . . . . Propulsion 22 | 2 . 2 2 2 4 1 7 2 Treads 5 | 2 . . . . . 1 1 1 Leg 13 | . . . 1 2 4 . 6 . Wheel 3 | . . 2 1 . . . . . Hover . | . . . . . . . . . Flight 1 | . . . . . . . . 1 Utility 24 | . 3 . . 5 6 1 6 3 Device 7 | . . . . 1 2 . 2 2 Storage 3 | . 2 . . 1 . . . . Processor 2 | . 1 . . 1 . . . . Hackware 6 | . . . . 1 1 . 4 . Protection 6 | . . . . 1 3 1 . 1 Artifact . | . . . . . . . . . Weapon 28 | . 4 1 8 5 2 2 6 . Energy Gun 3 | . 2 . 1 . . . . . Energy Cannon . | . . . . . . . . . Ballistic Gun 14 | . 2 1 5 3 1 1 1 . Ballistic Cannon 2 | . . . . 1 . . 1 . Launcher 4 | . . . 1 . 1 . 2 . Special Weapon 2 | . . . 1 1 . . . . Impact Weapon 2 | . . . . . . . 2 . Slashing Weapon 1 | . . . . . . 1 . . Piercing Weapon . | . . . . . . . . . Special Melee Weapon . | . . . . . . . . . Unidentified Prototypes 4 | . . . . 1 . 1 2 . Parts Lost 35 | . 2 4 . . 2 4 12 11 Power 7 | . 2 1 . . . 1 2 1 Propulsion 12 | . . 2 . . . 1 3 6 Utility 12 | . . . . . 2 1 5 4 Weapon 4 | . . 1 . . . 1 2 . Highest Loss Streak 6 | . 1 4 . . 1 4 5 6 To Critical Strikes 1 | . . . . . . . . 1 Average Backups 9 | 2 5 9 8 9 12 13 12 11 Power . | . . . . . . 1 1 1 Propulsion 1 | . . . . 1 1 2 1 1 Utility 4 | . 1 5 2 4 6 7 4 4 Weapon 3 | 1 3 3 4 3 3 3 4 4 Tool/Special . | . . . . . . . . . Unused Backups 24 | . . 1 6 6 1 . 4 6 Power 1 | . . . . . . . . 1 Propulsion . | . . . . . . . . . Utility 12 | . . . 5 1 1 . 3 2 Weapon 11 | . . 1 1 5 . . 1 3 Tool/Special . | . . . . . . . . . Average Slot Usage (%) 89 | . 87 96 100 91 85 83 80 43 Engine 11 | . 9 12 14 12 10 11 10 3 Treads 4 | . 27 12 . . . . . 2 Leg 11 | . . . 10 12 21 21 19 12 Wheel 5 | . . 13 17 5 . . . . Device 3 | . . . . 6 8 4 . 2 Storage 10 | . 13 14 14 12 5 6 6 6 Processor 5 | . 8 14 14 1 . . . . Hackware 9 | . . . . 10 8 13 26 15 Protection 3 | . . . . 6 15 12 1 . Energy Gun 1 | . 14 . . . . . . . Ballistic Gun 16 | . 13 28 22 22 11 5 1 . Impact Weapon 1 | . . . . . . . 6 . Peak Build Rating 78 | 3 8 8 14 48 78 74 75 43 Average Rating 33 | 1 6 7 11 36 69 67 61 29 On Entrance 26 | . 3 8 7 14 47 71 47 43 Naked Turns . | . . . . . . . . . Heaviest Build 72 | 3 17 17 21 48 72 70 62 29 Greatest Support 115 | 3 40 40 26 55 110 110 115 60 Greatest Overweight (x) 3 | . . 3 1 1 . . 1 1 Average Overweight (x) . | . . . . . . . . . Largest Inventory Capacity 15 | 5 10 10 10 15 15 15 15 15 Average Capacity 11 | 5 9 10 10 11 15 15 15 14 Most Carried 15 | 5 10 10 10 13 15 15 15 14 Average Carried 10 | 3 5 9 9 10 13 14 14 11 Final Capacity 15 | 5 10 10 10 15 15 15 15 5 Final Carried 15 | 5 10 9 9 13 15 15 14 4 Class Distribution -------------------- 70% | Mutant 25% | Hacker-Mutant 3% | Scavenger-Mutant Dominant Class ---------------- Mutant | -10/Materials Mutant | -10/Mines Mutant | -10/Subcaves Mutant | -8/Scraptown Hacker-Mutant | -6/Factory Hacker-Mutant | -6/Waste Hacker-Mutant | -6/Factory Hacker-Mutant | -6/Lower Caves Resources | -11 -10 -10 -10 -8 -6 -6 -6 -6 ----------- Run | Yrd Mat Min Sub Scr Fac Was Fac Low Matter Collected 1553 | 205 187 54 220 208 209 . 470 . Remotely . | . . . . . . . . . Salvage Created 1538 | . 432 171 157 . 241 . 537 . Parts 72 | . 28 7 12 . 7 . 18 . Haulers Intercepted 2 | . 1 . . . . . 1 . Recyclers Shooed 2 | . . 1 . . . . 1 . Parts Field Recycled . | . . . . . . . . . Retrieved Matter . | . . . . . . . . . Parts Self-Destructed 9 | . . . 9 . . . . . Prevented . | . . . . . . . . . Kills | -11 -10 -10 -10 -8 -6 -6 -6 -6 ------- Run | Yrd Mat Min Sub Scr Fac Was Fac Low Combat Hostiles Destroyed 38 | . 11 2 7 . 9 . 9 . Melee 3 | . . . . . . . 3 . Guns 23 | . 11 2 6 . 4 . . . AOE 8 | . . . 1 . 5 . 2 . Classes Destroyed 12 | . 4 1 1 . 4 . 2 . Worker 3 | . . . . . . . 3 . Hauler 2 | . 1 . . . . . 1 . Recycler 1 | . . 1 . . . . . . Operator 1 | . . . . . . . 1 . Watcher 4 | . 3 . . . . . 1 . Swarmer 10 | . 6 . 4 . . . . . Grunt 14 | . 5 2 . . 4 . 3 . Brawler 2 | . . . . . 1 . 1 . Sentry 2 | . . . . . 1 . 1 . Hunter 3 | . . . . . 2 . 1 . Programmer 4 | . . . . . 1 . 3 . Subdweller 3 | . . . 3 . . . . . Best Kill Streak 5 | . 3 2 4 . 3 . 5 . Combat Bots Only 4 | . 3 2 4 . 3 . 2 . Max Kills in Single Turn 3 | . 1 1 1 . 2 . 3 . Gunslinging . | . . . . . . . . . Exploded 2 | . . . 1 . 2 . 1 . Melee 1 | . . . . . . . 1 . Uniques/NPCs Destroyed . | . . . . . . . . . Combat | -11 -10 -10 -10 -8 -6 -6 -6 -6 -------- Run | Yrd Mat Min Sub Scr Fac Was Fac Low Hostile Shots Fired 537 | . 76 19 47 . 71 6 200 118 Missed 173 | . 14 3 19 . 27 3 70 37 Hits 364 | . 62 16 28 . 44 3 130 81 Melee 8 | . . . . . 4 3 1 . Projectile 356 | . 62 16 28 . 40 . 129 81 AOE 1 | . . . 1 . . . . . Critical Strikes 12 | . . . . . 2 2 4 4 Actively Blocked 1 | . . . . . 1 . . . Part Disruptions 2 | . . . . . . . 2 . Damage Taken 5455 | . 600 204 341 . 749 130 2271 1160 Core 1037 | . 90 . 90 . 139 . 395 323 Absorbed by Shields . | . . . . . . . . . Redirected to Shielding 40 | . . . . . 40 . . . Ignored by Resistances 18 | . . . . . 18 . . . Core Remaining (%) 64 | 100 . . . 28 . . . . Volleys Fired 143 | . 48 14 41 . 30 . 10 . Largest 2 | . 2 2 2 . 2 . 2 . Hottest 100 | . 90 40 100 . 58 . 86 . Shots Fired 243 | . 95 27 62 . 46 . 13 . Gun 207 | . 95 27 40 . 39 . 6 . Cannon 2 | . . . . . . . 2 . Launcher 14 | . . . 2 . 7 . 5 . Special 20 | . . . 20 . . . . . Kinetic 163 | . 50 27 39 . 39 . 8 . Thermal 65 | . 45 . 20 . . . . . Explosive 12 | . . . 2 . 7 . 3 . Electromagnetic 3 | . . . 1 . . . 2 . Robot Hit Streak 13 | . 6 12 11 . 13 . 3 . Robot Miss Streak 6 | . 5 1 3 . 6 . 3 . Penetration Max . | . . . . . . . . . Secondary Targets 2 | . . 1 1 . . . . . Max Gunslinging Chain 1 | . . 1 1 . . . . . Shots Hit Robots 195 | . 57 24 37 . 34 . 43 . Core Hits 107 | . 31 10 15 . 35 . 16 . Critical Kills . | . . . . . . . . . Critical Parts Destroyed 10 | . . 1 . . . . 9 . Critical Strikes 11 | . . 1 1 . . . 9 . Destroy 2 | . . 1 1 . . . . . Smash 9 | . . . . . . . 9 . Melee Attacks 49 | . . . . . . . 49 . Impact 49 | . . . . . . . 49 . Slashing . | . . . . . . . . . Piercing . | . . . . . . . . . Sneak Attacks 3 | . . . . . . . 3 . Combat Hostiles . | . . . . . . . . . Follow-up Attacks 5 | . . . . . . . 5 . Damage Inflicted 5886 | . 596 177 857 . 1698 . 2547 11 Guns 1999 | . 596 177 407 . 715 . 104 . Cannons 52 | . . . . . . . 52 . Explosions 1632 | . . . 114 . 967 . 551 . Melee 1786 | . . . . . . . 1786 . Ramming 81 | . . . . . 16 . 54 11 Kinetic 1740 | . 285 177 407 . 715 . 156 . Thermal 753 | . 311 . 336 . 106 . . . Explosive 1421 | . . . 114 . 861 . 446 . Electromagnetic 105 | . . . . . . . 105 . Impact 1786 | . . . . . . . 1786 . Slashing . | . . . . . . . . . Piercing . | . . . . . . . . . Highest Corruption 26 | . . . . . . 13 26 26 Average Corruption 18 | . . . . . . 8 18 26 Corruption Purged 6 | . . . . . . . 6 . Corruption Blocked . | . . . . . . . . . Effects 74 | . . . . . . 9 60 5 Message Errors 12 | . . . . . . 2 10 . Matter Fused 20 | . . . . . . . 16 4 Heat Flow Errors 10 | . . . . . . . 10 . Energy Discharges 6 | . . . . . . . 6 . Parts Rejected 2 | . . . . . . . 2 . Parts Fused 1 | . . . . . . 1 . . Data Loss (minor) 11 | . . . . . . 2 8 1 Data Loss (major) 3 | . . . . . . 1 2 . Misfires 1 | . . . . . . . 1 . Alerts 2 | . . . . . . . 2 . Misdirections 6 | . . . . . . 3 3 . Overload Shots . | . . . . . . . . . Overflow Damage 641 | . . . . . 73 . 567 1 Projectiles . | . . . . . . . . . Explosions 73 | . . . . . 73 . . . Melee 568 | . . . . . . . 567 1 Knockbacks 9 | . . . . . 1 . 8 . Impact 8 | . . . . . 1 . 7 . Kinetic . | . . . . . . . . . Secondary 1 | . . . . . . . 1 . Self-Inflicted Damage 173 | . . . . . . . 168 5 Shots 3 | . . . . . . . 3 . Rammed 1 | . . . . . . . . 1 Targets Rammed 10 | . . . . . 3 . 6 1 Kicked 9 | . . . . . 3 . 6 . Crushed . | . . . . . . . . . Highest Temperature 263 | . 200 24 . . 257 . 263 . Average Temperature 90 | . 96 12 . . 91 . 94 . Received Heat Transfer 999 | . 162 117 63 . 156 . 489 12 Effects 3 | . . . . . 3 . . . Interference 3 | . . . . . 3 . . . Siege Activations . | . . . . . . . . . Martial Activations . | . . . . . . . . . Shielding Activations . | . . . . . . . . . Robots Disrupted . | . . . . . . . . . Combat Hostiles . | . . . . . . . . . Robots Corrupted 6 | . . . . . . . 6 . Combat Hostiles 4 | . . . . . . . 4 . Parts Fried 5 | . . . . . . . 5 . Impact Corruptions 28 | . . . . . . . 27 1 Robots Melted . | . . . . . . . . . Combat Hostiles . | . . . . . . . . . Parts Melted 1 | . 1 . . . . . . . Heat Transferred 1580 | . 830 . 700 . 50 . . . Parts Sabotaged . | . . . . . . . . . Parts Stolen . | . . . . . . . . . Parts Stripped . | . . . . . . . . . Power Chain Reactions . | . . . . . . . . . Alert | -11 -10 -10 -10 -8 -6 -6 -6 -6 ------- Run | Yrd Mat Min Sub Scr Fac Was Fac Low Maximum Alert Level 1 | . . . . . . . 1 . Low Security (%) 98 | 100 100 100 . . 100 100 96 . Level 1 1 | . . . . . . . 3 . Level 2 . | . . . . . . . . . Level 3 . | . . . . . . . . . Level 4 . | . . . . . . . . . Level 5 . | . . . . . . . . . High Security . | . . . . . . . . . Max Security . | . . . . . . . . . Peak Influence 216 | . 77 40 . . 151 47 216 . Initial 47 | . . 4 . . . 47 . . Average 38 | . 27 2 . . 34 16 68 . Influence Increases 1524 | . 324 55 267 . 308 . 570 . Destroy 0b10 Robot/C 760 | . 220 40 140 . 180 . 180 . Destroy 0b10 Robot/NC 55 | . 20 5 . . . . 30 . Destroy Leader 172 | . 48 10 10 . 50 . 54 . Allied During Kill 12 | . . . 12 . . . . . Successful Hack 35 | . 21 . . . . . 14 . Disable Machine 165 | . . . . . 30 . 135 . Destroy Structure 115 | . . . . . 48 . 67 . Lose Combat Pursuer 210 | . 15 . 105 . . . 90 . Influence Decreases 1524 | . 313 66 200 67 173 135 405 165 Entered New Map 224 | . . 7 . 67 . 88 . 62 Time Decay 1066 | . 293 49 160 . 163 47 314 40 Lost Part 194 | . 20 10 . . 10 . 91 63 Lost Ally 40 | . . . 40 . . . . . Squads Dispatched 10 | . . . . . 4 . 6 . Investigation 3 | . . . . . 1 . 2 . Extermination 3 | . . . . . 1 . 2 . Reinforcement 4 | . . . . . 2 . 2 . Assault . | . . . . . . . . . Garrison . | . . . . . . . . . Intercept . | . . . . . . . . . Searches Triggered . | . . . . . . . . . Construction Impeded 1 | . . . . . 1 . . . Haulers Reinforced . | . . . . . . . . . Active Scanning Responses . | . . . . . . . . . Cargo Convoy Interrupts . | . . . . . . . . . Stealth | -11 -10 -10 -10 -8 -6 -6 -6 -6 --------- Run | Yrd Mat Min Sub Scr Fac Was Fac Low Distress Signals 1 | . 1 . . . . . . . Communications Jammed . | . . . . . . . . . Distress Signals . | . . . . . . . . . Times Spotted 75 | . 19 2 12 . 13 6 20 3 Peak Tracking Total 6 | . 3 2 6 . 3 6 3 3 Tactical Retreats 9 | . 1 . 3 . . . 5 . Traps | -11 -10 -10 -10 -8 -6 -6 -6 -6 ------- Run | Yrd Mat Min Sub Scr Fac Was Fac Low Traps Triggered 7 | . 1 . . . 2 . 4 . Indirectly . | . . . . . . . . . Trap Hack Attempts . | . . . . . . . . . Triggered . | . . . . . . . . . Disarmed . | . . . . . . . . . Reprogrammed . | . . . . . . . . . Reused . | . . . . . . . . . Traps Extracted . | . . . . . . . . . Installed . | . . . . . . . . . Triggered . | . . . . . . . . . Machines | -11 -10 -10 -10 -8 -6 -6 -6 -6 ---------- Run | Yrd Mat Min Sub Scr Fac Was Fac Low Machines Disabled 12 | . . . 1 . 2 . 9 . Max in Single Turn 3 | . . . 1 . 2 . 3 . Machines Repaired . | . . . . . . . . . Machines Dismantled . | . . . . . . . . . Machines Sabotaged . | . . . . . . . . . Overloaded Fab Kills . | . . . . . . . . . Hacking | -11 -10 -10 -10 -8 -6 -6 -6 -6 --------- Run | Yrd Mat Min Sub Scr Fac Was Fac Low Machines Accessed 22 | . 4 . 2 8 1 . 7 . Terminals 8 | . 4 . . . . . 4 . Fabricators 2 | . . . . . . . 2 . Repair Stations . | . . . . . . . . . Recycling Units 2 | . . . . . 1 . 1 . Scanalyzers . | . . . . . . . . . Garrison Access . | . . . . . . . . . Total Hacks 119 | . 15 . 13 68 5 . 18 . Successful 97 | . 7 . 13 68 3 . 6 . Failed 22 | . 8 . . . 2 . 12 . Catastrophic 4 | . . . . . . . 4 . Database Lockouts . | . . . . . . . . . Manual 23 | . 14 . 3 . 1 . 5 . Terminals 29 | . 15 . . . . . 14 . Fabricators 3 | . . . . . . . 3 . Repair Stations . | . . . . . . . . . Recycling Units 6 | . . . . . 5 . 1 . Scanalyzers . | . . . . . . . . . Garrison Access . | . . . . . . . . . Terminal Hacks 90 | . 5 . 13 68 . . 4 . Record 74 | . . . 12 61 . . 1 . Part Schematic 1 | . 1 . . . . . . . Robot Analysis 10 | . 3 . . 7 . . . . Branch Access Points 1 | . . . . . . . 1 . Locate Traps 1 | . 1 . . . . . . . Hauler Manifests 1 | . . . . . . . 1 . Registered Components 1 | . . . . . . . 1 . Proto ID Catalog 1 | . . . 1 . . . . . Fabricator Hacks 1 | . . . . . . . 1 . Network Status 1 | . . . . . . . 1 . Repair Station Hacks . | . . . . . . . . . Recycling Unit Hacks 2 | . . . . . 2 . . . Process 1 | . . . . . 1 . . . Report Inventory 1 | . . . . . 1 . . . Scanalyzer . | . . . . . . . . . Garrison Access Hacks . | . . . . . . . . . Unauthorized Hacks 4 | . 2 . . . 1 . 1 . Terminals 2 | . 2 . . . . . . . Botnet 2 | . 2 . . . . . . . Fabricators . | . . . . . . . . . Repair Stations . | . . . . . . . . . Recycling Units 2 | . . . . . 1 . 1 . Fedlink 2 | . . . . . 1 . 1 . Scanalyzers . | . . . . . . . . . Garrison Access . | . . . . . . . . . Data Cores Recovered . | . . . . . . . . . Used . | . . . . . . . . . Hacking Detections 9 | . 4 . . . 1 . 4 . Full Trace Events . | . . . . . . . . . Feedback Events . | . . . . . . . . . Feedback Blocked . | . . . . . . . . . Robot Schematics Acquired . | . . . . . . . . . Robots Built . | . . . . . . . . . Authchips . | . . . . . . . . . Time . | . . . . . . . . . Total Robot Build Rating . | . . . . . . . . . Part Schematics Acquired 1 | . 1 . . . . . . . Parts Built . | . . . . . . . . . Authchips . | . . . . . . . . . Time . | . . . . . . . . . Total Part Build Rating . | . . . . . . . . . Parts Repaired . | . . . . . . . . . Time . | . . . . . . . . . Parts Recycled . | . . . . . . . . . Recycled Matter 12 | . . . . . 12 . . . Retrieved Matter . | . . . . . . . . . Retrieved Components . | . . . . . . . . . Parts Scanalyzed . | . . . . . . . . . Part Schematics Acquired . | . . . . . . . . . Parts Damaged . | . . . . . . . . . Bothacking | -11 -10 -10 -10 -8 -6 -6 -6 -6 ------------ Run | Yrd Mat Min Sub Scr Fac Was Fac Low Used RIF Installer . | . . . . . . . . . Robots Hacked . | . . . . . . . . . Non-combat . | . . . . . . . . . Combat . | . . . . . . . . . Robot Hacks Applied . | . . . . . . . . . Relay Couplers Released . | . . . . . . . . . Fabnet Peak Effective % . | . . . . . . . . . Robots Rewired . | . . . . . . . . . Allies Hacked . | . . . . . . . . . Hacks Repelled . | . . . . . . . . . Allies | -11 -10 -10 -10 -8 -6 -6 -6 -6 -------- Run | Yrd Mat Min Sub Scr Fac Was Fac Low Total Allies 3 | . . 3 . . . . . . Largest Group 3 | . . 3 3 1 1 . . . Highest-Rated Group 40 | . . 40 40 7 7 . . . Highest-Rated Ally 16 | . . 16 16 7 7 . . . Total Orders 17 | . . . . 2 15 . . . STAY 2 | . . . . 1 1 . . . ROAM 3 | . . . . . 3 . . . FOLLOW 2 | . . . . 1 1 . . . EXPLORE 8 | . . . . . 8 . . . RETURN 2 | . . . . . 2 . . . Ally Attacks 15 | . . . 15 . . . . . Total Damage 140 | . . . 140 . . . . . Kills 4 | . . . 4 . . . . . Allies Corrupted 1 | . . . . . 1 . . . Allies Melted . | . . . . . . . . . Intel | -11 -10 -10 -10 -8 -6 -6 -6 -6 ------- Run | Yrd Mat Min Sub Scr Fac Was Fac Low Active Infowar (turns) . | . . . . . . . . . Robot Analysis Total 9 | . 2 . . 7 . . . . Derelict Logs Recovered 6 | . . 2 1 3 . . . . Drone Launches 3 | . . . . . 3 . . . Drone Recoveries 2 | . . . . . 2 . . . Exploration | -11 -10 -10 -10 -8 -6 -6 -6 -6 ------------- Run | Yrd Mat Min Sub Scr Fac Was Fac Low Turns Passed 8527 | 31 1037 773 1559 2658 701 157 1495 116 Spaces Moved 5983 | 39 506 600 1218 2058 394 115 978 75 Core 68 | 39 8 14 . . . . . 7 Treads 717 | . 498 204 . . . . . 15 Legs 2824 | . . . . 1286 394 115 978 51 Wheels 2372 | . . 382 1218 772 . . . . Hover . | . . . . . . . . . Flight 2 | . . . . . . . . 2 Fastest Speed 40 | 50 50 90 90 120 126 127 120 40 Average Speed 124 | 50 158 116 109 126 126 127 126 126 Slowest Speed 250 | 50 160 200 120 130 130 130 200 250 Overloaded Moves . | . . . . . . . . . Propulsion Burnouts . | . . . . . . . . . Robots Hopped . | . . . . . . . . . Potential Cave-ins . | . . . . . . . . . Cave-ins Triggered . | . . . . . . . . . Exploration Rate (%) 51 | 4 75 99 66 93 10 78 22 15 Regions Visited 8 Branch Regions 4 Pre-discovered Areas 6 | . . 2 . 3 . . 1 . Known Exits Taken 1 | . . . . . . . 1 . Unknown Exits Taken 5 | 1 1 1 1 1 . . . . Scrap Searched 14 | . . 1 5 8 . . . . Spaces Dug . | . . . . . . . . . Terrain Destroyed 145 | . . . . . 61 . 84 . Melee . | . . . . . . . . . Projectile . | . . . . . . . . . AOE 145 | . . . . . 61 . 84 . Terrain Rammed . | . . . . . . . . . Walls Destroyed . | . . . . . . . . . Machines Disabled . | . . . . . . . . . Actions | -11 -10 -10 -10 -8 -6 -6 -6 -6 --------- Run | Yrd Mat Min Sub Scr Fac Was Fac Low Total 6736 | 49 658 653 1345 2123 549 124 1136 99 Wait 280 | . 73 31 39 10 89 1 27 10 Move 5975 | 38 505 599 1217 2057 393 114 977 75 Hop . | . . . . . . . . . Pick Up 93 | 8 17 4 9 17 11 1 26 . Fast Attach 22 | . . . 5 10 1 2 4 . Attach 51 | 3 11 4 . 3 8 . 17 5 Detach 1 | . . . . . 1 . . . Swap 39 | . 1 . 15 3 8 2 10 . Drop 74 | . 3 1 19 22 4 3 15 7 Fire 143 | . 48 14 41 . 30 . 10 . Melee 44 | . . . . . . . 44 . Ram 2 | . . . . . . 1 . 1 Kick 9 | . . . . . 3 . 6 . Crush . | . . . . . . . . . Escape Stasis 1 | . . . . . 1 . . . Rewire 1 | . . . . 1 . . . . Trap . | . . . . . . . . . Miscellaneous 1 | . . . . . . . . 1 Route ------- -11/Scrapyard -10/Materials (discovered 4 exits: [*Mat x3] / [*Min]) -10/Mines (discovered 4 exits: [*Mat x2] / [*Exi] / *Sub) -10/Subcaves (discovered 2 exits: Rec / *Scr) -8/Scraptown (discovered 2 exits: *Fac x2) -6/Factory -6/Waste -6/Factory (discovered 4 exits: *Low x2 / Ext x2) -6/Lower Caves History --------- Turn | Location | Event 11 | -11/Scrapyard | Discovered new exit (range 16) 32 | -11/Scrapyard | Entered Materials 300 | -10/Materials | Discovered new exit (range 14) 307 | -10/Materials | Build established: Mutant 455 | -10/Materials | Discovered new exit (range 11) 707 | -10/Materials | Discovered new exit (range 11) 1031 | -10/Materials | Discovered new exit (range 15) 1069 | -10/Materials | Entered Mines 1090 | -10/Mines | Discovered new exit (range 6) 1449 | -10/Mines | Lost 4 parts (1p2n1w) 1525 | -10/Mines | Discovered new exit (range 6) 1551 | -10/Mines | Learned location of Zion (-6) 1626 | -10/Mines | Learned location of Storage (-8) 1631 | -10/Mines | Deemed a non-threat by the Exiles lab entrance 1631 | -10/Mines | Discovered new exit (range 5) 1634 | -10/Mines | Assisted by bots powering up and referring to "LRC-V3" 1640 | -10/Mines | Discovered new exit (range 8) 1842 | -10/Mines | Entered Subcaves 1842 | -10/Subcaves | Accompanied by 3 allies 1843 | -10/Subcaves | Approached by a straggling Scientist 1987 | -10/Subcaves | A swath of the cavern ceiling suddenly collapsed 2159 | -10/Subcaves | Visited 4L-MR0's lab 2164 | -10/Subcaves | Learned Materials stockpile data 2181 | -10/Subcaves | Found Cargo Legs 2428 | -10/Subcaves | Build established: Scavenger-Mutant 2472 | -10/Subcaves | Core integrity fell below 50% 2633 | -10/Subcaves | A swath of the cavern ceiling suddenly collapsed 2778 | -10/Subcaves | Build established: Mutant 2932 | -10/Subcaves | Scientist uncovered a shortcut to Scraptown 2981 | -10/Subcaves | Visited Clippyterm 2984 | -10/Subcaves | Identified exit to Recycling 2984 | -10/Subcaves | Learned Factory fabricator intel 3010 | -10/Subcaves | Shifting Twisted Machinery released Sub. Machine Gun 3214 | -10/Subcaves | Shifting Twisted Machinery released Flamer 3401 | -10/Subcaves | Entered Scraptown 3401 | -8/Scraptown | Accompanied by 1 ally 3617 | -8/Scraptown | Visited Red Mages 3631 | -8/Scraptown | Visited Bundlers 3750 | -8/Scraptown | Learned location of Extension (-6) 3933 | -8/Scraptown | Scanned Subdweller tech in exchange for log data 3937 | -8/Scraptown | Learned Factory terminal intel 3938 | -8/Scraptown | Learned location of Quarantine (-3) 3956 | -8/Scraptown | Discovered new exit (range 5) 4157 | -8/Scraptown | Visited Junk Repository 4226 | -8/Scraptown | Visited Awakened 4242 | -8/Scraptown | Visited Supply Room 4358 | -8/Scraptown | Attached Cargo Legs, gained temporary slots: Utility x2 4511 | -8/Scraptown | Visited Cyclists 4532 | -8/Scraptown | Visited TADAMA 4698 | -8/Scraptown | Visited UFD Registry 4698 | -8/Scraptown | Registered with UFD as "Fissiondrive" 4729 | -8/Scraptown | Entered Cyclist Reading Room 4837 | -8/Scraptown | Visited Cartography Club 4882 | -8/Scraptown | Found Surveybot 17 Chip 5022 | -8/Scraptown | Visited Junk Cannon Lab 5036 | -8/Scraptown | Found Prototype Special Weapon 5036 | -8/Scraptown | Identified Junk Cannon 5068 | -8/Scraptown | Visited Chapter 10 5111 | -8/Scraptown | Visited Analyses Database 5136 | -8/Scraptown | Visited Junk Repository 5163 | -8/Scraptown | Visited Research Penetration Think Tank 5198 | -8/Scraptown | Visited Derelict Rescue Squad 5207 | -8/Scraptown | Found DRS Beacon 5407 | -8/Scraptown | Visited Scrapoid Research Area 5444 | -8/Scraptown | Visited Curators Association 5476 | -8/Scraptown | Visited Science Testing Area 5973 | -8/Scraptown | Met Optimus 5973 | -8/Scraptown | Accepted into 0bPrime 6046 | -8/Scraptown | Discovered new exit (range 3) 6059 | -8/Scraptown | Entered Factory 6059 | -6/Factory | Accompanied by 1 ally 6059 | -6/Factory | Evolved 8 slots: Power x1, Propulsion x3, Utility x4 6060 | -6/Factory | Loaded intel: 28 terminal locations 6061 | -6/Factory | Loaded intel: 6 fabricator locations 6497 | -6/Factory | Loaded intel: 8 recycling unit locations 6662 | -6/Factory | Build established: Hacker-Mutant 6760 | -6/Factory | Sucked down chute 6760 | -6/Factory | Entered Waste 6775 | -6/Waste | EMP discharged 6784 | -6/Waste | Spotted C-40 Crusher 6792 | -6/Waste | Spotted C-40 Crusher 6829 | -6/Waste | Spotted C-40 Crusher 6860 | -6/Waste | Spotted C-40 Crusher 6873 | -6/Waste | Spotted C-40 Crusher 6873 | -6/Waste | Crushed by Compactor (1 part destroyed, 1 dropped) 6875 | -6/Waste | EMP discharged 6875 | -6/Waste | System corruption reached 10% 6880 | -6/Waste | Spotted C-40 Crusher 6889 | -6/Waste | Crushed by Compactor (1 part destroyed, 2 dropped) 6891 | -6/Waste | Crushed by Compactor (1 part destroyed, 1 dropped) 6905 | -6/Waste | Discovered new exit (range 10) 6917 | -6/Waste | Entered Factory 6922 | -6/Factory | Lost 4 parts (1p1n1u1w) 7271 | -6/Factory | Lost 3 parts (1n2u) 7599 | -6/Factory | Identified exit to Lower Caves 7599 | -6/Factory | Identified exit to Extension 8354 | -6/Factory | Core integrity fell below 50% 8380 | -6/Factory | Lost 5 parts (1p1n1u2w) 8402 | -6/Factory | Loaded intel: 8 recycling unit locations 8402 | -6/Factory | Learned location of Protoforge (-2) 8412 | -6/Factory | Entered Lower Caves 8414 | -6/Lower Caves | Attracted the attention of an 0b10 checkpoint 8501 | -6/Lower Caves | Activated DRS Beacon 8505 | -6/Lower Caves | Lost 6 parts (1p4n1u) 8511 | -6/Lower Caves | Core integrity fell below 20% 8528 | -6/Lower Caves | Destroyed by H-66 Slayer with Gauss Rifle Last Messages --------------- 08514_ System corrupted: Matter fused (-10). 08514_ Slug penetrates Wall. 08514_ Arm. Treads destroyed. 08517_ Penetrated by Slug. 08517_ Imp. Hacking Suite destroyed. 08517_ Slug penetrates Wall. 08519_ Identified Hrd. Medium Armor Plating. 08520_ Penetrated by Slug. 08520_ Slug penetrates Wall. 08520_ Dropped Hrd. Medium Armor Plating. 08521_ Dropped Adv. Assault Cannon. 08521_ Dropped Lrg. Storage Unit. 08523_ Penetrated by Slug. 08523_ Slug penetrates H-66 Slayer. 08523_ Nuclear Pulse Thruster destroyed. 08524_ Slammed into H-66 Slayer. 08524_ Destroyed Targeting Computer. 08524_ H-66 Slayer system corrupted by crushing effect. 08527_ Penetrated by Slug. 08528_ Slug penetrates Wall. Map ----- +----------------------------------------------------+ | ?????????????????????????????????????????????????? | | ?????????????????????????????????????????????????? | | ?????????????????????????????????????????????????? | | ?????????????????????????????????????????????????? | | ?????????????????????????????????????????????????? | | ?????????????????????????????????????????????????? | | ?????????????????????????????????????????????????? | | ?????????????????????????????????????????????????? | | ?????????????????????????????????????????????????? | | ?????????????????????????????????????????????????? | | ?????????????????????????????????????????????????? | | ?????????????????????????????????????????????????? | | ?????????????????????????????????????????????????? | | ????????????????????????????????????? ??????????? | | ????????????????????????????????????? ?????????? | | ?????????????????????????????????????# ####?????? | | ??????????????????#######????????? ### #????? | | ??????????????????#[&] ##???????# #???? | | ??????????????????#[[!! #??????## ##?? | | ??????????????????#### ##?????# #?? | | ?????????????????????## ##???? ##? | | ??????????????????????# ####??? ## | | ??????????????????????## ##??? ??# | | ???????????????????????## #????# #??# | | ????????????????????????# ##???## ##?# # | | ????????????????????????#@ ####### ### ## | | ??????????????????????### ## ## ## #? | | ???????????????????#### #?# ##? | | ??????????????????## #### ##?? | | ??????????????????# ###? | | ????????????# # | | ??????????# ####### # | | ??????????# ## #######?????### ####### | | ?????????# ?####?????????????#####?????? | | ????????? ### ?????????????????????????????? | | ????????? ????## ?????????????????????????????? | | ???????????????## ??????????????????????????????? | | ????????????????###??????????????????????????????? | | ?????????????????????????????????????????????????? | | ?????????????????????????????????????????????????? | | ?????????????????????????????????????????????????? | | ?????????????????????????????????????????????????? | | ?????????????????????????????????????????????????? | | ?????????????????????????????????????????????????? | | ?????????????????????????????????????????????????? | | ?????????????????????????????????????????????????? | | ?????????????????????????????????????????????????? | | ?????????????????????????????????????????????????? | | ?????????????????????????????????????????????????? | | ?????????????????????????????????????????????????? | +----------------------------------------------------+ Best States ------------- Heat Dissipation 37 Energy Generation 31 Energy Capacity 510 Matter Stores 300 Matter Capacity 300 Sight Range 16 Terrain Scan Density 10 Armor Coverage 450 Resistance: TH 10 Resistance: EM 15 Propulsion Shielding 66 Evasion (%) 65 Targeting Accuracy 6 Recoil Reduction 2 Particle Charging 20 Offensive Hacking 32 Defensive Hacking 30 Item Schematics ----------------- Huge Storage Unit | -10/Materials | Hacked Robot Schematics ------------------ None Fabricated ------------ Nothing Repaired ---------- Nothing Alien Tech Used ----------------- None Achievements -------------- None Challenges ------------ None Game ------ Seed MicrodissipatorSapperKit Manual? 0 Play Time 01:08:53 Cumulative 193.7 hours Start 2025.09.30 @ 15:14:59 End 2025.09.30 @ 16:36:22 Sessions 1 Manual Loads 0 Difficulty Rogue Special Mode None Game No. 307 Rogue 304 Adventurer 3 Explorer 0 Win Type - Total 1 Types 1/0/0/0/0/0/0/0/0/0 Lore% 65 Gallery% 60 Achievement% 47 Wizard Run 0 Options --------- Layout 0 ASCII 0 Keyboard 0 Movement Mouse Keybinds 0 Fullscreen 2 Font 18/SmallcapsGlow Map View 76x50 Zoom Use 0% Tactical HUD 1 Map Filters NONE Filters NONE Steam 1 RUN: 00d9b1aa-fbd8-4344-98d3-8a98de7f3d83